lending/lending_fUSD_20250210
["ID","MTS","AMOUNT","RATE_DAILY","PERIOD"]
[352627821,1739207143711,-11798.60123265,8.836e-05,2]
[352627822,1739207143737,-500.0,8.851e-05,2]
[352627823,1739207143762,-1647.3812,8.851e-05,2]
[352627863,1739207272214,361.3864,8.119e-05,2]
[352627864,1739207359408,-20000.0,8.566e-05,2]
[352627865,1739207373889,-3900.0,8.566e-05,2]
[352627866,1739207373916,-556.6544,8.699e-05,2]
[352627867,1739207373940,-238.11927881,8.808e-05,2]
[352627868,1739207373968,-18766.6098,8.836e-05,2]
[352627869,1739207373996,-397.5599,8.836e-05,2]
[352627870,1739207374022,-1141.05662119,8.851e-05,2]
[352627871,1739207417196,-1358.94337881,8.851e-05,2]
[352627872,1739207417220,-228.9627,8.851e-05,2]
[352627873,1739207417244,-2349.7994,8.973e-05,2]
[352627874,1739207417269,-150.0,8.973e-05,2]
[352627875,1739207417294,-150.0,8.992e-05,2]
[352627876,1739207417319,-449.12,9.036e-05,2]
[352627877,1739207417344,-243.76,9.05e-05,2]
[352627878,1739207417370,-150.0,9.101e-05,2]
[352627879,1739207417393,-594.41,9.103e-05,2]
[352627880,1739207417419,-150.0,9.114e-05,2]
[352627881,1739207417443,-1000.0,9.146e-05,2]
[352627882,1739207417469,-43175.00452119,9.148e-05,2]
[352627894,1739207431549,-270.58703462,9.148e-05,2]
[352627895,1739207431559,-150.0,9.196e-05,2]
[352627896,1739207431572,-150.0,9.197e-05,2]
[352627897,1739207431582,-502.55641875,9.197e-05,2]
[352627898,1739207431591,-150.0,9.224e-05,2]
[352627899,1739207431600,-150.0,9.238e-05,2]
[352627900,1739207431610,-1000.0,9.254e-05,2]
[352627901,1739207431619,-150.0,9.267e-05,2]
[352627902,1739207431628,-150.0,9.281e-05,2]
[352627903,1739207431638,-408.82819471,9.295e-05,2]
[352627904,1739207431650,-591.17180529,9.295e-05,2]
[352627905,1739207431659,-150.0,9.331e-05,2]
[352627906,1739207431669,-1000.0,9.394e-05,2]
[352627907,1739207431679,-260.21385484,9.415e-05,2]
[352627908,1739207431688,-150.0,9.482e-05,2]
[352627909,1739207431698,-150.0,9.491e-05,2]
[352627910,1739207431707,-1000.0,9.517e-05,2]
[352627911,1739207431716,-150.0,9.522e-05,2]
[352627912,1739207431726,-150.0,9.571e-05,2]
[352627913,1739207431735,-150.0,9.589e-05,2]
[352627914,1739207431745,-150.0,9.591e-05,2]
[352627915,1739207431754,-732.56,9.609e-05,2]
[352627916,1739207431764,-150.0,9.634e-05,2]
[352627917,1739207431773,-150.0,9.638e-05,2]
[352627918,1739207431782,-150.0,9.667e-05,2]
[352627919,1739207431791,-150.0,9.696e-05,2]
[352627920,1739207431801,-150.0,9.756e-05,2]
[352627921,1739207431810,-150.0,9.869e-05,2]
[352627922,1739207431822,-186.83660641,9.888e-05,2]
[352627923,1739207431831,-150.0,9.888e-05,2]
[352627924,1739207431841,-6555.86890291,9.892e-05,2]
[352627925,1739207431850,-150.0,9.901e-05,2]
[352627926,1739207431859,-150.0,9.909e-05,2]
[352627927,1739207431868,-150.0,9.948e-05,2]
[352627928,1739207431878,-150.0,9.951e-05,2]
[352627929,1739207431887,-1000.0,9.985e-05,2]
[352627930,1739207431896,-150.0,9.99e-05,2]
[352627931,1739207431905,-502.55641873,9.999e-05,2]
[352627932,1739207431914,-15253.35029284,0.0001,2]
[352627933,1739207431952,-67039.6047972,0.0001,2]
[352627934,1739207431963,-3490.07497671,0.0001,2]
[352627935,1739207431975,-80653.72655333,0.0001,2]
[352627936,1739207431984,-32258.04122156,0.0001,2]
[352627937,1739207431995,-5785.77617514,0.0001,2]
[352627938,1739207432006,-692.5626787,0.0001,2]
[352627939,1739207432017,-1000.0,0.0001,2]
[352627946,1739207432087,-684.04122533,0.0001,2]
[352627948,1739207432099,-547.91945619,0.0001,2]
[352627952,1739207432130,-80777.53155771,0.0001,2]
[352627954,1739207432139,-150.0,0.00010039,2]
[352627956,1739207432148,-150.0,0.0001004,2]
[352627958,1739207432157,-150.0,0.0001005,2]
[352627960,1739207432166,-729.11026486,0.00010073,2]
[352627962,1739207432175,-150.0,0.00010095,2]
[352627964,1739207432185,-150.0,0.00010098,2]
[352627966,1739207432195,-400.0,0.000101,3]
[352627968,1739207432204,-150.0,0.00010107,2]
[352627970,1739207432213,-500.0,0.0001011,2]
[352627972,1739207432222,-500.0,0.0001011,2]
[352627974,1739207432232,-500.0,0.0001011,2]
[352627975,1739207432241,-572.93841723,0.0001011,2]
[352627976,1739207432250,-183107.10528311,0.00010111,2]
[352627977,1739207432259,-18060.95991669,0.00010111,2]
[352627978,1739207432268,-150.0,0.00010122,2]
[352627979,1739207432277,-157.93,0.00010137,2]
[352627980,1739207432287,-150.0,0.00010137,2]
[352627981,1739207432296,-150.0,0.0001014,2]
[352627982,1739207432305,-509.86,0.00010161,2]
[352627983,1739207432315,-150.0,0.00010172,2]
[352627984,1739207432324,-175.69604024,0.00010173,2]
[352627985,1739207432333,-150.0,0.00010187,2]
[352627986,1739207432343,-800.0,0.000102,3]
[352627987,1739207432352,-150.0,0.00010218,2]
[352627988,1739207432361,-10489.39024465,0.00010251,2]
[352627989,1739207432370,-150.0,0.00010284,2]
[352627990,1739207432379,-150.0,0.00010294,2]
[352627991,1739207432389,-1200.0,0.000103,3]
[352627992,1739207432398,-150.0,0.00010339,2]
[352627993,1739207432407,-3933.52134174,0.00010354,2]
[352627994,1739207432415,-150.0,0.00010378,2]
[352627995,1739207432425,-150.0,0.00010387,2]
[352627996,1739207432434,-150.0,0.00010392,2]
[352627997,1739207432443,-1600.0,0.000104,3]
[352627998,1739207432453,-150.0,0.00010425,2]
[352627999,1739207432463,-822.8,0.00010437,2]
[352628000,1739207432472,-1000.0,0.00010456,2]
[352628001,1739207432482,-1000.0,0.00010494,2]
[352628002,1739207432493,-2000.0,0.000105,3]
[352628003,1739207432502,-150.0,0.00010504,2]
[352628004,1739207432511,-150.0,0.0001055,2]
[352628005,1739207432521,-300.0,0.00010554,2]
[352628006,1739207432628,-1000.0,0.00010564,2]
[352628007,1739207432637,-150.0,0.00010588,2]
[352628008,1739207432647,-400.0,0.000106,3]
[352628009,1739207432656,-150.0,0.00010652,2]
[352628010,1739207432666,-732.56,0.00010676,2]
[352628011,1739207432675,-150.0,0.00010677,2]
[352628012,1739207432684,-150.0,0.00010685,2]
[352628013,1739207432693,-150.0,0.00010688,2]
[352628014,1739207432702,-400.0,0.000107,3]
[352628015,1739207432711,-199.00939926,0.0001071,2]
[352628016,1739207432720,-150.0,0.00010717,2]
[352628017,1739207432729,-150.0,0.00010734,2]
[352628018,1739207432739,-150.0,0.00010754,2]
[352628019,1739207432748,-150.0,0.00010776,2]
[352628020,1739207432757,-1386.25556815,0.000108,2]
[352628021,1739207432766,-332999.68006392,0.000108,2]
[352628022,1739207432775,-400.0,0.000108,3]
[352628023,1739207432784,-150.0,0.00010804,2]
[352628024,1739207432793,-150.0,0.00010819,2]
[352628025,1739207432802,-4000.0,0.0001089,2]
[352628026,1739207432811,-150.0,0.00010892,2]
[352628027,1739207432822,-66164.19574351,0.00010892,2]
[352628028,1739207432831,-3010.833224,0.000109,2]
[352628029,1739207432840,-1086.61056756,0.000109,2]
[352628030,1739207432849,-3467.31464265,0.000109,2]
[352628031,1739207432858,-162.09347594,0.000109,2]
[352628032,1739207432867,-400.0,0.000109,3]
[352628033,1739207432876,-502.55641873,0.000109,2]
[352628034,1739207432885,-150.0,0.00010928,2]
[352628035,1739207432894,-1828.38818063,0.00010948,2]
[352628036,1739207432903,-150.0,0.00010956,2]
[352628037,1739207432912,-511.3312512,0.00010958,2]
[352628038,1739207432921,-500.0,0.00010958,2]
[352628039,1739207432929,-500.0,0.00010958,2]
[352628040,1739207432938,-500.0,0.00010958,2]
[352628041,1739207432949,-500.0,0.00010958,2]
[352628042,1739207432958,-541.71270841,0.00010958,2]
[352628043,1739207432967,-500.0,0.00010958,2]
[352628044,1739207432976,-500.0,0.00010958,2]
[352628045,1739207432986,-500.0,0.00010958,2]
[352628046,1739207432995,-554.73019171,0.00010958,2]
[352628047,1739207433004,-554.59,0.00010958,2]
[352628048,1739207433013,-500.0,0.00010958,2]
[352628049,1739207433022,-503.48231636,0.00010958,2]
[352628050,1739207433031,-500.0,0.00010958,2]
[352628051,1739207433041,-500.0,0.00010958,2]
[352628052,1739207433050,-538.93,0.00010958,2]
[352628053,1739207433059,-500.0,0.00010958,2]
[352628054,1739207433069,-500.0,0.00010958,2]
[352628055,1739207433079,-500.0,0.00010958,2]
[352628056,1739207433088,-500.0,0.00010958,2]
[352628057,1739207433097,-500.0,0.00010958,2]
[352628058,1739207433107,-500.0,0.00010958,2]
[352628059,1739207433117,-500.0,0.00010958,2]
[352628060,1739207433126,-500.0,0.00010958,2]
[352628061,1739207433135,-500.0,0.00010958,2]
[352628062,1739207433145,-584.56770077,0.00010958,2]
[352628063,1739207433154,-500.0,0.00010958,2]
[352628064,1739207433165,-500.0,0.00010958,2]
[352628065,1739207433175,-500.0,0.00010958,2]
[352628066,1739207433185,-500.0,0.00010958,2]
[352628067,1739207433195,-500.0,0.00010958,2]
[352628068,1739207433205,-500.0,0.00010958,2]
[352628069,1739207433214,-500.0,0.00010958,2]
[352628070,1739207433223,-500.0,0.00010958,2]
[352628071,1739207433233,-500.0,0.00010958,2]
[352628072,1739207433244,-500.0,0.00010958,2]
[352628073,1739207433263,-500.0,0.00010958,2]
[352628074,1739207433281,-500.0,0.00010958,2]
[352628075,1739207433301,-500.0,0.00010958,2]
[352628076,1739207433319,-500.0,0.00010958,2]
[352628077,1739207433336,-580.34666617,0.00010958,2]
[352628078,1739207433354,-500.0,0.00010958,2]
[352628079,1739207433373,-500.0,0.00010958,2]
[352628080,1739207433394,-500.0,0.00010958,2]
[352628081,1739207433412,-500.0,0.00010958,2]
[352628082,1739207433432,-309.62429365,0.00010958,2]
[352628083,1739207433448,-500.0,0.00010958,2]
[352628084,1739207433464,-500.0,0.00010958,2]
[352628085,1739207433483,-500.0,0.00010958,2]
[352628086,1739207433499,-500.0,0.00010958,2]
[352628087,1739207433516,-500.0,0.00010958,2]
[352628088,1739207433530,-500.0,0.00010958,2]
[352628089,1739207433549,-500.0,0.00010958,2]
[352628090,1739207433566,-509.96755594,0.00010958,2]
[352628091,1739207433581,-500.0,0.00010958,2]
[352628092,1739207433598,-500.0,0.00010958,2]
[352628093,1739207433613,-502.3465325,0.00010958,2]
[352628094,1739207433629,-500.0,0.00010958,2]
[352628095,1739207433647,-520.89901893,0.00010958,2]
[352628096,1739207433664,-500.0,0.00010958,2]
[352628097,1739207433679,-500.0,0.00010958,2]
[352628098,1739207433696,-500.0,0.00010958,2]
[352628099,1739207433712,-500.0,0.00010958,2]
[352628100,1739207433728,-500.0,0.00010958,2]
[352628101,1739207433744,-500.0,0.00010958,2]
[352628102,1739207433760,-500.0,0.00010958,2]
[352628103,1739207433776,-500.0,0.00010958,2]
[352628104,1739207433792,-500.0,0.00010958,2]
[352628105,1739207433807,-500.0,0.00010958,2]
[352628106,1739207433823,-500.0,0.00010958,2]
[352628107,1739207433838,-500.0,0.00010958,2]
[352628108,1739207433853,-500.0,0.00010958,2]
[352628109,1739207433869,-500.0,0.00010958,2]
[352628110,1739207433884,-156.273019,0.00010958,2]
[352628111,1739207433900,-500.0,0.00010958,2]
[352628112,1739207433914,-500.0,0.00010958,2]
[352628113,1739207433930,-500.0,0.00010958,2]
[352628114,1739207433945,-500.0,0.00010958,2]
[352628115,1739207433961,-500.0,0.00010958,2]
[352628116,1739207433976,-500.0,0.00010958,2]
[352628117,1739207433993,-500.0,0.00010958,2]
[352628118,1739207434008,-500.0,0.00010958,2]
[352628119,1739207434023,-1463.91665,0.00010958,2]
[352628120,1739207434039,-500.0,0.00010958,2]
[352628121,1739207434055,-281.22712736,0.00010958,2]
[352628122,1739207434072,-500.0,0.00010958,2]
[352628123,1739207434088,-503.59446568,0.00010958,2]
[352628124,1739207434103,-501.42349163,0.00010958,2]
[352628125,1739207434118,-500.0,0.00010958,2]
[352628126,1739207434134,-500.0,0.00010958,2]
[352628127,1739207434149,-1610.307783,0.00010958,2]
[352628128,1739207434164,-500.0,0.00010958,2]
[352628129,1739207434180,-500.0,0.00010958,2]
[352628130,1739207434195,-500.0,0.00010958,2]
[352628131,1739207434210,-500.0,0.00010958,2]
[352628132,1739207434225,-500.0,0.00010958,2]
[352628133,1739207434243,-500.0,0.00010958,2]
[352628134,1739207434261,-500.0,0.00010958,2]
[352628135,1739207434278,-521.98112458,0.00010958,2]
[352628136,1739207434296,-155.741173,0.00010958,2]
[352628137,1739207434307,-500.0,0.00010958,2]
[352628138,1739207434442,-543.89554214,0.00010958,2]
[352628139,1739207434507,-500.0,0.00010958,2]
[352628140,1739207434517,-500.0,0.00010958,2]
[352628141,1739207434528,-500.0,0.00010958,2]
[352628142,1739207434537,-500.0,0.00010958,2]
[352628143,1739207434547,-500.0,0.00010958,2]
[352628144,1739207434557,-599.96646097,0.00010958,2]
[352628145,1739207434570,-500.0,0.00010958,2]
[352628146,1739207434580,-500.0,0.00010958,2]
[352628147,1739207434589,-500.0,0.00010958,2]
[352628148,1739207434599,-500.0,0.00010958,2]
[352628149,1739207434608,-500.0,0.00010958,2]
[352628150,1739207434618,-500.0,0.00010958,2]
[352628151,1739207434628,-500.0,0.00010958,2]
[352628152,1739207434637,-500.0,0.00010958,2]
[352628153,1739207434646,-857.8,0.00010958,2]
[352628154,1739207434656,-500.0,0.00010958,2]
[352628155,1739207434666,-506.16875181,0.00010958,2]
[352628156,1739207434675,-500.68995689,0.00010958,2]
[352628157,1739207434684,-511.95,0.00010958,2]
[352628158,1739207434694,-500.0,0.00010958,2]
[352628159,1739207434703,-500.0,0.00010958,2]
[352628160,1739207434712,-505.85655566,0.00010958,2]
[352628161,1739207434721,-500.0,0.00010958,2]
[352628162,1739207434731,-578.8,0.00010958,2]
[352628163,1739207434740,-500.0,0.00010958,2]
[352628164,1739207434748,-500.0,0.00010958,2]
[352628165,1739207434757,-500.0,0.00010958,2]
[352628166,1739207434766,-500.0,0.00010958,2]
[352628167,1739207434775,-570.53,0.00010958,2]
[352628168,1739207434784,-500.0,0.00010958,2]
[352628169,1739207434793,-197.8927789,0.00010958,2]
[352628170,1739207434803,-500.0,0.00010958,2]
[352628171,1739207434813,-500.0,0.00010958,2]
[352628172,1739207434822,-212.2362891,0.00010958,2]
[352628173,1739207434831,-500.0,0.00010958,2]
[352628174,1739207434840,-500.0,0.00010958,2]
[352628175,1739207434849,-500.0,0.00010958,2]
[352628176,1739207434859,-500.0,0.00010958,2]
[352628177,1739207434867,-500.0,0.00010958,2]
[352628178,1739207434876,-500.0,0.00010958,2]
[352628179,1739207434885,-500.0,0.00010958,2]
[352628180,1739207434894,-500.0,0.00010958,2]
[352628181,1739207434903,-500.0,0.00010958,2]
[352628182,1739207434913,-500.0,0.00010958,2]
[352628183,1739207434923,-500.0,0.00010958,2]
[352628184,1739207434932,-500.0,0.00010958,2]
[352628185,1739207434941,-500.0,0.00010958,2]
[352628186,1739207434950,-500.0,0.00010958,2]
[352628187,1739207434959,-500.0,0.00010958,2]
[352628188,1739207434968,-500.0,0.00010958,2]
[352628189,1739207434977,-500.0,0.00010958,2]
[352628190,1739207434986,-500.0,0.00010958,2]
[352628191,1739207434996,-289.62949595,0.00010958,2]
[352628192,1739207435005,-500.0,0.00010958,2]
[352628193,1739207435014,-150.0,0.00010958,2]
[352628194,1739207435023,-500.0,0.00010958,2]
[352628195,1739207435032,-500.0,0.00010958,2]
[352628196,1739207435042,-768.22,0.00010958,2]
[352628197,1739207435051,-500.0,0.00010958,2]
[352628198,1739207435059,-617.51,0.00010958,2]
[352628199,1739207435069,-500.0,0.00010958,2]
[352628200,1739207435078,-500.0,0.00010958,2]
[352628201,1739207435087,-500.0,0.00010958,2]
[352628202,1739207435096,-500.0,0.00010958,2]
[352628203,1739207435105,-500.0,0.00010958,2]
[352628204,1739207435114,-500.0,0.00010958,2]
[352628205,1739207435123,-605.48,0.00010958,2]
[352628206,1739207435132,-500.0,0.00010958,2]
[352628207,1739207435141,-500.0,0.00010958,2]
[352628208,1739207435149,-500.0,0.00010958,2]
[352628209,1739207435158,-506.52,0.00010958,2]
[352628210,1739207435167,-500.0,0.00010958,2]
[352628211,1739207435176,-500.0,0.00010958,2]
[352628212,1739207435185,-993.89,0.00010958,2]
[352628213,1739207435194,-500.0,0.00010958,2]
[352628214,1739207435203,-500.0,0.00010958,2]
[352628215,1739207435213,-500.0,0.00010958,2]
[352628216,1739207435222,-577.8,0.00010958,2]
[352628217,1739207435231,-500.0,0.00010958,2]
[352628218,1739207435240,-500.0,0.00010958,2]
[352628219,1739207435250,-628.12,0.00010958,2]
[352628220,1739207435259,-500.0,0.00010958,2]
[352628221,1739207435269,-500.0,0.00010958,2]
[352628222,1739207435278,-500.0,0.00010958,2]
[352628223,1739207435287,-307.72804416,0.00010958,2]
[352628224,1739207435297,-648.60519614,0.00010958,2]
[352628225,1739207435306,-500.0,0.00010958,2]
[352628226,1739207435319,-616.1,0.00010958,2]
[352628227,1739207435328,-500.0,0.00010958,2]
[352628228,1739207435337,-500.0,0.00010958,2]
[352628229,1739207435347,-933.59,0.00010958,2]
[352628230,1739207435356,-500.0,0.00010958,2]
[352628231,1739207435365,-648.39,0.00010958,2]
[352628232,1739207435374,-500.0,0.00010958,2]
[352628233,1739207435384,-500.0,0.00010958,2]
[352628234,1739207435392,-500.0,0.00010958,2]
[352628235,1739207435402,-500.0,0.00010958,2]
[352628236,1739207435411,-500.0,0.00010958,2]
[352628237,1739207435420,-500.0,0.00010958,2]
[352628238,1739207435429,-500.0,0.00010958,2]
[352628239,1739207435438,-500.0,0.00010958,2]
[352628240,1739207435448,-500.0,0.00010958,2]
[352628241,1739207435457,-615.48,0.00010958,2]
[352628242,1739207435467,-612.9,0.00010958,2]
[352628243,1739207435481,-500.0,0.00010958,2]
[352628244,1739207435491,-500.0,0.00010958,2]
[352628245,1739207435500,-500.0,0.00010958,2]
[352628246,1739207435510,-500.0,0.00010958,2]
[352628247,1739207435521,-500.0,0.00010958,2]
[352628248,1739207435530,-451.29724139,0.00010958,2]
[352628249,1739207435540,-500.0,0.00010958,2]
[352628250,1739207435550,-577.02,0.00010958,2]
[352628251,1739207435559,-565.23,0.00010958,2]
[352628252,1739207435571,-867.98,0.00010958,2]
[352628253,1739207435581,-500.0,0.00010958,2]
[352628254,1739207435590,-500.0,0.00010958,2]
[352628255,1739207435600,-500.0,0.00010958,2]
[352628256,1739207435609,-500.0,0.00010958,2]
[352628257,1739207435618,-500.0,0.00010958,2]
[352628258,1739207435627,-500.0,0.00010958,2]
[352628259,1739207435637,-195.15604541,0.00010958,2]
[352628260,1739207435646,-500.0,0.00010958,2]
[352628261,1739207435655,-500.0,0.00010958,2]
[352628262,1739207435665,-500.0,0.00010958,2]
[352628263,1739207435674,-500.0,0.00010958,2]
[352628264,1739207435685,-500.0,0.00010958,2]
[352628265,1739207435694,-500.0,0.00010958,2]
[352628266,1739207435703,-553.23,0.00010958,2]
[352628267,1739207435713,-995.32,0.00010958,2]
[352628268,1739207435722,-500.0,0.00010958,2]
[352628269,1739207435731,-576.31,0.00010958,2]
[352628270,1739207435740,-500.0,0.00010958,2]
[352628271,1739207435750,-500.0,0.00010958,2]
[352628272,1739207435759,-500.0,0.00010958,2]
[352628273,1739207435768,-506.62018164,0.00010958,2]
[352628274,1739207435777,-162.835225,0.00010958,2]
[352628275,1739207435786,-500.0,0.00010958,2]
[352628276,1739207435795,-530.8,0.00010958,2]
[352628277,1739207435804,-500.0,0.00010958,2]
[352628278,1739207435813,-520.83,0.00010958,2]
[352628279,1739207435824,-500.0,0.00010958,2]
[352628280,1739207435833,-500.0,0.00010958,2]
[352628281,1739207435843,-500.0,0.00010958,2]
[352628282,1739207435853,-500.0,0.00010958,2]
[352628283,1739207435863,-536.82,0.00010958,2]
[352628284,1739207435872,-504.33538854,0.00010958,2]
[352628285,1739207435882,-1244.72,0.00010958,2]
[352628286,1739207435891,-500.0,0.00010958,2]
[352628287,1739207435901,-500.0,0.00010958,2]
[352628288,1739207435910,-585.64,0.00010958,2]
[352628289,1739207435919,-500.0,0.00010958,2]
[352628290,1739207435929,-500.0,0.00010958,2]
[352628291,1739207435938,-500.0,0.00010958,2]
[352628292,1739207435948,-754.22,0.00010958,2]
[352628293,1739207435957,-500.0,0.00010958,2]
[352628294,1739207435967,-500.0,0.00010958,2]
[352628295,1739207435977,-546.5,0.00010958,2]
[352628296,1739207435986,-500.0,0.00010958,2]
[352628297,1739207435996,-500.0,0.00010958,2]
[352628298,1739207436006,-500.0,0.00010958,2]
[352628299,1739207436015,-500.0,0.00010958,2]
[352628300,1739207436024,-500.0,0.00010958,2]
[352628301,1739207436034,-500.0,0.00010958,2]
[352628302,1739207436043,-500.0,0.00010958,2]
[352628303,1739207436053,-500.0,0.00010958,2]
[352628304,1739207436062,-500.0,0.00010958,2]
[352628305,1739207436073,-500.0,0.00010958,2]
[352628306,1739207436082,-500.0,0.00010958,2]
[352628307,1739207436091,-500.0,0.00010958,2]
[352628308,1739207436100,-500.993423,0.00010958,2]
[352628309,1739207436109,-500.0,0.00010958,2]
[352628310,1739207436119,-500.0,0.00010958,2]
[352628311,1739207436128,-500.0,0.00010958,2]
[352628312,1739207436137,-503.27163911,0.00010958,2]
[352628313,1739207436146,-500.0,0.00010958,2]
[352628314,1739207436156,-815.01,0.00010958,2]
[352628315,1739207436165,-500.0,0.00010958,2]
[352628316,1739207436175,-500.0,0.00010958,2]
[352628317,1739207436184,-703.11,0.00010958,2]
[352628318,1739207436194,-500.0,0.00010958,2]
[352628319,1739207436203,-500.0,0.00010958,2]
[352628320,1739207436213,-500.0,0.00010958,2]
[352628321,1739207436222,-682.08,0.00010958,2]
[352628322,1739207436231,-500.0,0.00010958,2]
[352628323,1739207436241,-500.0,0.00010958,2]
[352628324,1739207436250,-500.0,0.00010958,2]
[352628325,1739207436260,-500.0,0.00010958,2]
[352628326,1739207436269,-500.0,0.00010958,2]
[352628327,1739207436278,-500.0,0.00010958,2]
[352628328,1739207436288,-500.0,0.00010958,2]
[352628329,1739207436297,-500.0,0.00010958,2]
[352628330,1739207436306,-500.0,0.00010958,2]
[352628331,1739207436317,-500.0,0.00010958,2]
[352628332,1739207436327,-500.0,0.00010958,2]
[352628333,1739207436336,-500.0,0.00010958,2]
[352628334,1739207436346,-500.0,0.00010958,2]
[352628335,1739207436355,-500.0,0.00010958,2]
[352628336,1739207436364,-598.46,0.00010958,2]
[352628337,1739207436373,-500.0,0.00010958,2]
[352628338,1739207436383,-423.67012822,0.00010958,2]
[352628339,1739207436392,-500.0,0.00010958,2]
[352628340,1739207436402,-500.0,0.00010958,2]
[352628341,1739207436411,-500.0,0.00010958,2]
[352628342,1739207436527,-500.0,0.00010958,2]
[352628343,1739207436537,-500.0,0.00010958,2]
[352628344,1739207436546,-500.0,0.00010958,2]
[352628345,1739207436556,-433.10247876,0.00010958,2]
[352628346,1739207436945,-66.89752124,0.00010958,2]
[352628347,1739207436955,-500.0,0.00010958,2]
[352628348,1739207436964,-500.0,0.00010958,2]
[352628349,1739207436973,-500.0,0.00010958,2]
[352628350,1739207436983,-500.0,0.00010958,2]
[352628351,1739207436992,-500.0,0.00010958,2]
[352628352,1739207437001,-500.0,0.00010958,2]
[352628353,1739207437010,-500.0,0.00010958,2]
[352628354,1739207437019,-535.81,0.00010958,2]
[352628355,1739207437029,-514.4,0.00010958,2]
[352628356,1739207437038,-500.0,0.00010958,2]
[352628357,1739207437047,-793.0,0.00010958,2]
[352628358,1739207437057,-500.0,0.00010958,2]
[352628359,1739207437067,-647.57815439,0.00010958,2]
[352628360,1739207437076,-500.0,0.00010958,2]
[352628361,1739207437087,-500.0,0.00010958,2]
[352628362,1739207437097,-596.94,0.00010958,2]
[352628363,1739207437107,-226.71,0.00010958,2]
[352628364,1739207437117,-500.24752449,0.00010958,2]
[352628365,1739207437126,-547.0,0.00010958,2]
[352628366,1739207437136,-522.17900932,0.00010958,2]
[352628367,1739207437146,-500.0,0.00010958,2]
[352628368,1739207437156,-739.39,0.00010958,2]
[352628369,1739207437166,-500.0,0.00010958,2]
[352628370,1739207437176,-500.0,0.00010958,2]
[352628371,1739207437186,-500.0,0.00010958,2]
[352628372,1739207437196,-500.0,0.00010958,2]
[352628373,1739207437207,-500.0,0.00010958,2]
[352628374,1739207437216,-500.0,0.00010958,2]
[352628375,1739207437225,-500.0,0.00010958,2]
[352628376,1739207437235,-500.0,0.00010958,2]
[352628377,1739207437245,-500.0,0.00010958,2]
[352628378,1739207437254,-500.0,0.00010958,2]
[352628379,1739207437264,-500.22824734,0.00010958,2]
[352628380,1739207437275,-500.0,0.00010958,2]
[352628381,1739207437285,-500.0,0.00010958,2]
[352628382,1739207437295,-500.0,0.00010958,2]
[352628383,1739207437304,-500.0,0.00010958,2]
[352628384,1739207437314,-500.0,0.00010958,2]
[352628385,1739207437325,-645.64316033,0.00010958,2]
[352628386,1739207437335,-500.0,0.00010958,2]
[352628387,1739207437345,-500.0,0.00010958,2]
[352628388,1739207437355,-500.0,0.00010958,2]
[352628389,1739207437365,-500.0,0.00010958,2]
[352628390,1739207437374,-500.0,0.00010958,2]
[352628391,1739207437384,-427.75087528,0.00010958,2]